fUSD/lending_fUSD_20250616
["ID","MTS","AMOUNT","RATE_DAILY","PERIOD"]
[366138532,1750083045021,-500.0,0.00016438,2]
[366138533,1750083045032,-500.0,0.00016438,2]
[366138534,1750083045042,-500.0,0.00016438,2]
[366138535,1750083045052,-500.0,0.00016438,2]
[366138536,1750083045063,-500.0,0.00016438,2]
[366138537,1750083045073,-657.43,0.00016438,2]
[366138538,1750083045083,-500.0,0.00016438,2]
[366138539,1750083045093,-740.99,0.00016438,2]
[366138540,1750083045104,-500.0,0.00016438,2]
[366138541,1750083045114,-500.0,0.00016438,2]
[366138542,1750083045124,-946.67,0.00016438,2]
[366138543,1750083045135,-500.0,0.00016438,2]
[366138544,1750083045146,-490.0,0.00016438,2]
[366138545,1750083045158,-969.81,0.00016438,2]
[366138546,1750083045170,-490.0,0.00016438,2]
[366138547,1750083045180,-2143.56,0.00016438,2]
[366138548,1750083045190,-490.0,0.00016438,2]
[366138549,1750083045201,-1112.63,0.00016438,2]
[366138550,1750083045211,-798.86,0.00016438,2]
[366138551,1750083045221,-1084.14,0.00016438,2]
[366138552,1750083045232,-490.0,0.00016438,2]
[366138553,1750083045242,-490.0,0.00016438,2]
[366138554,1750083045725,-1607.27,0.00016438,2]
[366138555,1750083045745,-3189.3,0.00016438,2]
[366138556,1750083045757,-586.6800802,0.00016438,2]
[366138557,1750083045767,-586.6800802,0.00016438,2]
[366138558,1750083045778,-586.6800802,0.00016438,2]
[366138559,1750083045792,-586.6800802,0.00016438,2]
[366138560,1750083045802,-586.6800802,0.00016438,2]
[366138561,1750083045812,-586.6800802,0.00016438,2]
[366138562,1750083045823,-586.6800802,0.00016438,2]
[366138563,1750083045833,-586.6800802,0.00016438,2]
[366138564,1750083045843,-586.6800802,0.00016438,2]
[366138565,1750083045852,-586.6800802,0.00016438,2]
[366138566,1750083045864,-586.6800802,0.00016438,2]
[366138567,1750083045875,-586.6800802,0.00016438,2]
[366138568,1750083045885,-739.68,0.00016438,2]
[366138569,1750083045895,-586.6800802,0.00016438,2]
[366138570,1750083045905,-586.6800802,0.00016438,2]
[366138571,1750083045915,-586.6800802,0.00016438,2]
[366138572,1750083045925,-586.6800802,0.00016438,2]
[366138573,1750083045941,-586.6800802,0.00016438,2]
[366138574,1750083045951,-586.6800802,0.00016438,2]
[366138575,1750083045961,-586.6800802,0.00016438,2]
[366138576,1750083045971,-586.6800802,0.00016438,2]
[366138577,1750083045982,-586.6800802,0.00016438,2]
[366138578,1750083045992,-586.6800802,0.00016438,2]
[366138579,1750083046002,-586.6800802,0.00016438,2]
[366138580,1750083046012,-586.6800802,0.00016438,2]
[366138581,1750083046022,-586.6800802,0.00016438,2]
[366138582,1750083046032,-586.6800802,0.00016438,2]
[366138583,1750083046042,-586.6800802,0.00016438,2]
[366138584,1750083046052,-490.0,0.00016438,2]
[366138585,1750083046063,-586.6800802,0.00016438,2]
[366138586,1750083046073,-586.6800802,0.00016438,2]
[366138588,1750083046082,-586.6800802,0.00016438,2]
[366138590,1750083046093,-586.6800802,0.00016438,2]
[366138592,1750083046103,-586.6800802,0.00016438,2]
[366138594,1750083046113,-586.6800802,0.00016438,2]
[366138595,1750083046123,-915.01,0.00016438,2]
[366138596,1750083046133,-490.0,0.00016438,2]
[366138597,1750083046143,-1370.91,0.00016438,2]
[366138598,1750083046152,-17289.28,0.00016438,2]
[366138599,1750083046164,-1496.3,0.00016438,2]
[366138600,1750083046174,-4541.46,0.00016438,2]
[366138601,1750083046184,-1166.84,0.00016438,2]
[366138602,1750083046194,-490.0,0.00016438,2]
[366138603,1750083046204,-490.0,0.00016438,2]
[366138604,1750083046214,-1929.99,0.00016438,2]
[366138605,1750083046224,-490.0,0.00016438,2]
[366138606,1750083046233,-490.0,0.00016438,2]
[366138607,1750083046243,-3288.36,0.00016438,2]
[366138608,1750083046253,-490.0,0.00016438,2]
[366138609,1750083046263,-2345.4,0.00016438,2]
[366138610,1750083046273,-724.87,0.00016438,2]
[366138611,1750083046283,-606.96,0.00016438,2]
[366138612,1750083046293,-490.0,0.00016438,2]
[366138613,1750083046303,-1633.33,0.00016438,2]
[366138614,1750083046313,-586.68008023,0.00016438,2]
[366138615,1750083046323,-586.68008023,0.00016438,2]
[366138616,1750083046334,-586.68008023,0.00016438,2]
[366138617,1750083046344,-586.68008023,0.00016438,2]
[366138618,1750083046354,-1889.46,0.00016438,2]
[366138620,1750083046364,-1502.41,0.00016438,2]
[366138621,1750083046374,-490.0,0.00016438,2]
[366138622,1750083046406,-789.88,0.00016438,2]
[366138623,1750083046418,-1357.17,0.00016438,2]
[366138624,1750083046430,-1672.39,0.00016438,2]
[366138625,1750083046441,-5362.58,0.00016438,2]
[366138626,1750083046452,-1645.82,0.00016438,2]
[366138627,1750083046464,-659.21,0.00016438,2]
[366138628,1750083046474,-1237.82,0.00016438,2]
[366138629,1750083046486,-803.05,0.00016438,2]
[366138630,1750083046497,-805.33,0.00016438,2]
[366138631,1750083046507,-490.0,0.00016438,2]
[366138632,1750083046518,-5394.7,0.00016438,2]
[366138633,1750083046530,-966.14,0.00016438,2]
[366138634,1750083046541,-586.68008021,0.00016438,2]
[366138635,1750083046552,-2137.79,0.00016438,2]
[366138636,1750083046563,-490.0,0.00016438,2]
[366138637,1750083046574,-490.0,0.00016438,2]
[366138638,1750083046585,-490.0,0.00016438,2]
[366138639,1750083046597,-952.53,0.00016438,2]
[366138640,1750083046607,-1057.25,0.00016438,2]
[366138641,1750083046618,-725.56,0.00016438,2]
[366138642,1750083046629,-490.0,0.00016438,2]
[366138644,1750083046640,-7444.04,0.00016438,2]
[366138646,1750083046650,-490.0,0.00016438,2]
[366138648,1750083046661,-737.69,0.00016438,2]
[366138650,1750083046673,-878.67,0.00016438,2]
[366138652,1750083046684,-975.76,0.00016438,2]
[366138654,1750083046695,-490.0,0.00016438,2]
[366138656,1750083046705,-2370.56,0.00016438,2]
[366138658,1750083046716,-490.0,0.00016438,2]
[366138660,1750083046727,-490.0,0.00016438,2]
[366138662,1750083046737,-510.31,0.00016438,2]
[366138664,1750083046748,-558.22,0.00016438,2]
[366138667,1750083046762,-2451.47,0.00016438,2]
[366138669,1750083046772,-490.0,0.00016438,2]
[366138672,1750083046784,-1493.94,0.00016438,2]
[366138674,1750083046797,-1493.94,0.00016438,2]
[366138676,1750083046808,-949.38,0.00016438,2]
[366138678,1750083046816,-490.0,0.00016438,2]
[366138680,1750083046827,-7693.07,0.00016438,2]
[366138682,1750083046837,-1038.23,0.00016438,2]
[366138684,1750083046847,-588.0,0.00016438,2]
[366138687,1750083046857,-566.82,0.00016438,2]
[366138689,1750083046870,-490.0,0.00016438,2]
[366138691,1750083046879,-490.0,0.00016438,2]
[366138693,1750083046890,-2449.13,0.00016438,2]
[366138695,1750083046899,-1142.4,0.00016438,2]
[366138697,1750083046907,-2479.46,0.00016438,2]
[366138699,1750083046916,-2906.29,0.00016438,2]
[366138701,1750083046926,-577.73,0.00016438,2]
[366138703,1750083046934,-490.0,0.00016438,2]
[366138705,1750083046943,-490.0,0.00016438,2]
[366138707,1750083046954,-561.39,0.00016438,2]
[366138710,1750083046965,-639.68,0.00016438,2]
[366138712,1750083046975,-2777.71,0.00016438,2]
[366138714,1750083046986,-490.0,0.00016438,2]
[366138717,1750083046998,-490.0,0.00016438,2]
[366138719,1750083047015,-4251.87,0.00016438,2]
[366138721,1750083047027,-696.26,0.00016438,2]
[366138723,1750083047039,-490.0,0.00016438,2]
[366138725,1750083047050,-527.04,0.00016438,2]
[366138727,1750083047061,-697.27,0.00016438,2]
[366138730,1750083047072,-741.28,0.00016438,2]
[366138732,1750083047082,-1784.48,0.00016438,2]
[366138734,1750083047093,-792.21,0.00016438,2]
[366138736,1750083047104,-2192.66,0.00016438,2]
[366138738,1750083047115,-490.0,0.00016438,2]
[366138740,1750083047126,-649.26,0.00016438,2]
[366138742,1750083047136,-909.21,0.00016438,2]
[366138744,1750083047147,-490.0,0.00016438,2]
[366138747,1750083047158,-972.36,0.00016438,2]
[366138749,1750083047169,-666.98,0.00016438,2]
[366138751,1750083047179,-785.98,0.00016438,2]
[366138753,1750083047190,-1468.059575,0.00016438,2]
[366138755,1750083047201,-490.0,0.00016438,2]
[366138757,1750083047212,-2361.65,0.00016438,2]
[366138758,1750083047223,-1196.16,0.00016438,2]
[366138759,1750083047233,-610.04,0.00016438,2]
[366138760,1750083047244,-490.0,0.00016438,2]
[366138761,1750083047254,-833.05,0.00016438,2]
[366138762,1750083047265,-759.38,0.00016438,2]
[366138763,1750083047276,-1010.83,0.00016438,2]
[366138764,1750083047287,-1056.79,0.00016438,2]
[366138765,1750083047297,-1033.8,0.00016438,2]
[366138766,1750083047308,-517.32,0.00016438,2]
[366138767,1750083047319,-1649.96,0.00016438,2]
[366138768,1750083047329,-765.29,0.00016438,2]
[366138769,1750083047339,-490.0,0.00016438,2]
[366138770,1750083047350,-3738.1,0.00016438,2]
[366138771,1750083047361,-600.0,0.00016438,2]
[366138772,1750083047371,-150.0,0.00016441,2]
[366138773,1750083047382,-150.0,0.00016441,2]
[366138774,1750083047392,-150.0,0.00016445,2]
[366138775,1750083047403,-150.0,0.00016449,2]
[366138776,1750083047414,-150.0,0.00016449,2]
[366138777,1750083047425,-457.85152929,0.00016452,2]
[366138778,1750083047436,-150.0,0.00016458,2]
[366138779,1750083047451,-150.0,0.00016458,2]
[366138780,1750083047462,-150.0,0.00016459,2]
[366138781,1750083047473,-150.0,0.00016465,2]
[366138782,1750083047484,-150.0,0.00016469,2]
[366138783,1750083047495,-151.0,0.0001647,2]
[366138784,1750083047507,-992.526078,0.0001647,2]
[366138785,1750083047518,-992.526078,0.0001647,2]
[366138786,1750083047528,-150.0,0.00016471,2]
[366138787,1750083047539,-150.0,0.00016472,2]
[366138788,1750083047551,-150.0,0.00016473,2]
[366138789,1750083047561,-150.0,0.00016477,2]
[366138790,1750083047571,-150.0,0.00016478,2]
[366138791,1750083047582,-150.0,0.00016479,2]
[366138792,1750083047593,-150.0,0.00016482,2]
[366138793,1750083047604,-1493.94,0.00016483,2]
[366138794,1750083047614,-457.85152929,0.00016486,2]
[366138795,1750083047626,-150.0,0.00016488,2]
[366138796,1750083047637,-150.0,0.00016488,2]
[366138797,1750083047648,-833.8156298,0.00016488,2]
[366138798,1750083047660,-13789.94158554,0.0001649,2]
[366138799,1750083047672,-150.0,0.0001649,2]
[366138800,1750083047683,-150.0,0.00016493,2]
[366138801,1750083047694,-150.0,0.000165,2]
[366138802,1750083047704,-125303.80090531,0.000165,2]
[366138803,1750083047714,-150.0,0.000165,2]
[366138804,1750083047725,-151.0,0.000165,2]
[366138805,1750083047736,-1500.0,0.00016502,2]
[366138806,1750083047746,-150.0,0.00016513,2]
[366138807,1750083047757,-150.0,0.00016515,2]
[366138808,1750083047767,-2000.0,0.00016516,2]
[366138809,1750083047777,-500.0,0.00016516,2]
[366138810,1750083047790,-200.0,0.00016516,2]
[366138811,1750083047800,-150.0,0.00016516,2]
[366138812,1750083047810,-150.0,0.00016517,2]
[366138813,1750083047821,-1277.0,0.00016519,2]
[366138814,1750083047831,-558.0,0.00016519,2]
[366138815,1750083047841,-150.0,0.00016519,2]
[366138816,1750083047852,-590.0,0.0001652,2]
[366138817,1750083047862,-928.0,0.0001652,2]
[366138818,1750083047874,-2003.0,0.0001652,2]
[366138819,1750083047884,-1674.0,0.0001652,2]
[366138820,1750083047895,-1160.0,0.0001652,2]
[366138821,1750083047905,-150.0,0.0001652,2]
[366138822,1750083047915,-150.0,0.0001652,2]
[366138823,1750083047926,-150.0,0.0001652,2]
[366138824,1750083047936,-457.85152929,0.00016521,2]
[366138825,1750083047946,-150.0,0.00016523,2]
[366138826,1750083047957,-7112.0,0.00016524,2]
[366138827,1750083047967,-155.0,0.00016524,2]
[366138828,1750083047977,-887.452,0.00016524,2]
[366138829,1750083047987,-4090.0,0.00016524,2]
[366138830,1750083047998,-150.0,0.00016526,2]
[366138831,1750083048008,-150.0,0.00016528,2]
[366138832,1750083048018,-500.0,0.00016529,2]
[366138833,1750083048029,-150.0,0.00016531,2]
[366138834,1750083048039,-150.0,0.00016541,2]
[366138835,1750083048051,-2000.0,0.00016541,2]
[366138836,1750083048061,-500.0,0.00016541,2]
[366138837,1750083048071,-200.0,0.00016541,2]
[366138838,1750083048081,-230.74400591,0.00016542,2]
[366138839,1750083048092,-4238.40988247,0.00016542,2]
[366138840,1750083048102,-719.66559334,0.00016542,2]
[366138841,1750083048113,-222.23643821,0.00016542,2]
[366138842,1750083048124,-150.0,0.00016542,2]
[366138843,1750083048135,-150.0,0.00016542,2]
[366138844,1750083048145,-150.0,0.00016547,2]
[366138845,1750083048155,-150.0,0.00016547,2]
[366138846,1750083048168,-303.45446474,0.00016548,2]
[366138847,1750083048178,-150.0,0.00016553,2]
[366138848,1750083048189,-500.0,0.00016553,2]
[366138849,1750083048199,-457.85152929,0.00016555,2]
[366138850,1750083048210,-150.0,0.00016557,2]
[366138851,1750083048221,-204.78455823,0.00016558,2]
[366138852,1750083048231,-150.0,0.00016561,2]
[366138853,1750083048242,-150.0,0.00016565,2]
[366138854,1750083048253,-2000.0,0.00016565,2]
[366138855,1750083048263,-500.0,0.00016565,2]
[366138856,1750083048273,-200.0,0.00016565,2]
[366138857,1750083048284,-150.0,0.00016568,2]
[366138858,1750083048295,-150.0,0.00016568,2]
[366138859,1750083048307,-150.0,0.00016571,2]
[366138860,1750083048319,-200.0,0.00016575,2]
[366138861,1750083048498,-150.0,0.00016576,2]
[366138862,1750083048510,-150.0,0.00016579,2]
[366138863,1750083048520,-150.0,0.00016579,2]
[366138864,1750083048531,-150.0,0.0001658,2]
[366138865,1750083048541,-150.0,0.00016586,2]
[366138866,1750083048552,-457.85152929,0.0001659,2]
[366138867,1750083048562,-197.08506757,0.00016592,2]
[366138868,1750083048572,-150.0,0.00016593,2]
[366138869,1750083048583,-150.0,0.00016595,2]
[366138870,1750083048592,-151.0,0.00016596,2]
[366138871,1750083048602,-151.0,0.00016596,2]
[366138872,1750083048612,-330.351246,0.00016596,2]
[366138873,1750083048622,-330.351246,0.00016596,2]
[366138874,1750083048633,-2933.62,0.000166,2]
[366138875,1750083048643,-762.32,0.00016601,2]
[366138876,1750083048654,-3371.21,0.00016601,2]
[366138877,1750083048663,-1251.17,0.00016601,2]
[366138878,1750083048676,-195.74,0.00016601,2]
[366138879,1750083048686,-1561.68,0.00016601,2]
[366138880,1750083048696,-1720.27,0.00016601,2]
[366138881,1750083048706,-1839.28,0.00016601,2]
[366138882,1750083048717,-1659.03,0.00016601,2]
[366138883,1750083048727,-1049.72,0.00016601,2]
[366138884,1750083048736,-3553.48,0.00016601,2]
[366138885,1750083048746,-151.0,0.00016601,2]
[366138886,1750083048756,-1493.94,0.00016601,2]
[366138887,1750083048766,-1493.94,0.00016601,2]
[366138888,1750083048775,-151.0,0.00016602,2]
[366138889,1750083048790,-151.0,0.00016602,2]
[366138890,1750083048800,-151.0,0.00016602,2]
[366138891,1750083048810,-151.0,0.00016602,2]
[366138892,1750083048820,-151.0,0.00016602,2]
[366138893,1750083048830,-151.0,0.00016602,2]
[366138894,1750083048840,-151.0,0.00016602,2]
[366138895,1750083048851,-151.0,0.00016602,2]
[366138896,1750083048861,-151.0,0.00016602,2]
[366138897,1750083048873,-992.526078,0.00016602,2]
[366138898,1750083048884,-992.526078,0.00016602,2]
[366138899,1750083048894,-992.526078,0.00016602,2]
[366138900,1750083048903,-992.526078,0.00016602,2]
[366138901,1750083048913,-992.526078,0.00016602,2]
[366138902,1750083048924,-992.526078,0.00016602,2]
[366138903,1750083048934,-490.0,0.00016602,2]
[366138904,1750083048944,-490.0,0.00016602,2]
[366138905,1750083048953,-490.0,0.00016602,2]
[366138906,1750083048963,-490.0,0.00016602,2]
[366138907,1750083048973,-490.0,0.00016602,2]
[366138908,1750083048983,-490.0,0.00016602,2]
[366138909,1750083048992,-490.0,0.00016602,2]
[366138910,1750083049002,-490.0,0.00016602,2]
[366138911,1750083049013,-926.32,0.00016602,2]
[366138912,1750083049022,-490.0,0.00016602,2]
[366138913,1750083049032,-490.0,0.00016602,2]
[366138914,1750083049042,-490.0,0.00016602,2]
[366138915,1750083049051,-461.6777566,0.00016602,2]
[366138916,1750083049061,-254.617106,0.00016602,2]
[366138917,1750083049072,-490.0,0.00016602,2]
[366138918,1750083049082,-490.0,0.00016602,2]
[366138919,1750083049091,-490.0,0.00016602,2]
[366138920,1750083049101,-151.0,0.00016602,2]
[366138921,1750083049111,-1059.86,0.00016602,2]
[366138922,1750083049120,-615.26858788,0.00016602,2]
[366138923,1750083049131,-252.118929,0.00016602,2]
[366138924,1750083049141,-490.0,0.00016602,2]
[366138925,1750083049151,-490.0,0.00016602,2]
[366138926,1750083049161,-330.351246,0.00016602,2]
[366138927,1750083049172,-330.351246,0.00016602,2]
[366138928,1750083049182,-330.351246,0.00016602,2]
[366138929,1750083049192,-490.0,0.00016602,2]
[366138930,1750083049202,-330.351246,0.00016602,2]
[366138931,1750083049211,-330.351246,0.00016602,2]
[366138932,1750083049221,-330.351246,0.00016602,2]
[366138933,1750083049230,-490.0,0.00016602,2]
[366138934,1750083049240,-151.0,0.00016602,2]
[366138935,1750083049250,-490.0,0.00016602,2]
[366138936,1750083049260,-151.0,0.00016602,2]
[366138937,1750083049271,-151.0,0.00016602,2]
[366138938,1750083049281,-490.0,0.00016602,2]
[366138939,1750083049291,-490.0,0.00016602,2]
[366138940,1750083049301,-389.00255283,0.00016602,2]
[366138941,1750083049311,-490.0,0.00016602,2]
[366138942,1750083049321,-490.0,0.00016602,2]
[366138943,1750083049331,-300.0,0.00016602,2]
[366138944,1750083049341,-709.85,0.00016602,2]
[366138945,1750083049351,-490.0,0.00016602,2]
[366138946,1750083049361,-490.0,0.00016602,2]
[366138947,1750083049372,-151.0,0.00016602,2]
[366138948,1750083049382,-490.0,0.00016602,2]
[366138949,1750083049392,-490.0,0.00016602,2]
[366138950,1750083049402,-151.0,0.00016602,2]
[366138951,1750083049412,-542.3,0.00016602,2]
[366138952,1750083049423,-151.0,0.00016602,2]
[366138953,1750083049433,-151.0,0.00016602,2]
[366138954,1750083049443,-769.419414,0.00016602,2]
[366138955,1750083049453,-151.0,0.00016602,2]
[366138956,1750083049463,-490.0,0.00016602,2]
[366138957,1750083049473,-490.0,0.00016602,2]
[366138958,1750083049483,-151.0,0.00016602,2]
[366138959,1750083049494,-490.0,0.00016602,2]
[366138960,1750083049504,-490.0,0.00016602,2]
[366138961,1750083049514,-490.0,0.00016602,2]
[366138962,1750083049525,-151.0,0.00016602,2]
[366138963,1750083049535,-490.0,0.00016602,2]
[366138964,1750083049545,-279.30383772,0.00016602,2]
[366138965,1750083049555,-490.0,0.00016602,2]
[366138966,1750083049566,-151.0,0.00016602,2]
[366138967,1750083049575,-490.0,0.00016602,2]
[366138968,1750083049586,-111.57438764,0.00016602,2]
[366138969,1750083050125,500.0,0.00024658,120]
[366138970,1750083050151,-378.42561236,0.00016602,2]
[366138971,1750083050160,-151.0,0.00016602,2]
[366138972,1750083050170,-490.0,0.00016602,2]
[366138973,1750083050180,-241.423102,0.00016602,2]
[366138974,1750083050189,-490.0,0.00016602,2]
[366138975,1750083050198,-490.0,0.00016602,2]
[366138976,1750083050208,-490.0,0.00016602,2]
[366138977,1750083050217,-151.0,0.00016602,2]
[366138978,1750083050226,-490.0,0.00016602,2]
[366138979,1750083050235,-490.0,0.00016602,2]
[366138980,1750083050245,-151.0,0.00016602,2]
[366138981,1750083050255,-490.0,0.00016602,2]
[366138982,1750083050264,-505.01572153,0.00016602,2]
[366138983,1750083050276,-287.15652095,0.00016602,2]
[366138984,1750083050295,-92.06775752,0.00016602,2]
[366138985,1750083050304,-151.0,0.00016602,2]
[366138986,1750083050314,-490.0,0.00016602,2]
[366138987,1750083050324,-151.0,0.00016602,2]
[366138988,1750083050333,-490.0,0.00016602,2]
[366138989,1750083050343,-1042.89,0.00016602,2]
[366138990,1750083050353,-150.0,0.00016602,2]
[366138991,1750083050363,-203.43435403,0.00016602,2]
[366138992,1750083050373,-986.77,0.00016602,2]
[366138993,1750083050383,-150.0,0.00016602,2]
[366138994,1750083050392,-490.0,0.00016602,2]
[366138995,1750083050401,-150.0,0.00016602,2]
[366138996,1750083050411,-490.0,0.00016602,2]
[366138997,1750083050421,-150.0,0.00016602,2]
[366138998,1750083050430,-150.0,0.00016602,2]
[366138999,1750083050440,-490.0,0.00016602,2]
[366139000,1750083050450,-150.0,0.00016602,2]
[366139001,1750083050460,-886.56,0.00016602,2]
[366139002,1750083050470,-490.0,0.00016602,2]
[366139003,1750083050479,-150.0,0.00016602,2]
[366139004,1750083050488,-1060.7,0.00016602,2]
[366139005,1750083050498,-490.0,0.00016602,2]
[366139006,1750083050508,-507.92,0.00016602,2]
[366139007,1750083050518,-490.0,0.00016602,2]
[366139008,1750083050528,-150.0,0.00016602,2]
[366139009,1750083050538,-751.99,0.00016602,2]
[366139010,1750083050547,-842.27,0.00016602,2]
[366139011,1750083050557,-490.0,0.00016602,2]
[366139012,1750083050566,-490.0,0.00016602,2]
[366139013,1750083050575,-490.0,0.00016602,2]
[366139014,1750083050585,-805.51,0.00016602,2]
[366139015,1750083050594,-1131.15,0.00016602,2]
[366139016,1750083050604,-151.0,0.00016602,2]
[366139017,1750083050613,-151.0,0.00016602,2]
[366139018,1750083050623,-475.55765483,0.00016602,2]
[366139019,1750083050633,-525.71,0.00016602,2]
[366139020,1750083050643,-948.54,0.00016602,2]
[366139021,1750083050653,-490.0,0.00016602,2]
[366139022,1750083050662,-490.0,0.00016602,2]
[366139023,1750083050673,-490.0,0.00016602,2]
[366139024,1750083050682,-490.0,0.00016602,2]
[366139025,1750083050692,-490.0,0.00016602,2]
[366139026,1750083050701,-490.0,0.00016602,2]
[366139027,1750083050711,-618.69,0.00016602,2]
[366139028,1750083050720,-490.0,0.00016602,2]
[366139029,1750083050730,-250.0,0.00016602,2]
[366139030,1750083050739,-501.27,0.00016602,2]
[366139031,1750083050749,-752.39,0.00016602,2]
[366139032,1750083050758,-490.0,0.00016602,2]
[366139033,1750083050768,-525.48,0.00016602,2]
[366139034,1750083050777,-490.0,0.00016602,2]
[366139035,1750083050790,-490.0,0.00016602,2]
[366139036,1750083050801,-151.0,0.00016602,2]
[366139037,1750083050810,-151.0,0.00016602,2]
[366139038,1750083050820,-171.918919,0.00016602,2]
[366139039,1750083050830,-151.0,0.00016602,2]
[366139040,1750083050840,-171.918919,0.00016602,2]
[366139041,1750083050850,-400.78120572,0.00016602,2]
[366139042,1750083050859,-490.0,0.00016602,2]
[366139043,1750083050870,-490.0,0.00016602,2]
[366139044,1750083050880,-534.01,0.00016602,2]
[366139045,1750083050889,-151.0,0.00016602,2]
[366139046,1750083050899,-546.35792707,0.00016602,2]
[366139047,1750083050908,-151.0,0.00016602,2]
[366139048,1750083050918,-171.918919,0.00016602,2]
[366139049,1750083050927,-171.918919,0.00016602,2]
[366139050,1750083050937,-490.0,0.00016602,2]
[366139051,1750083050946,-490.0,0.00016602,2]
[366139052,1750083050957,-490.0,0.00016602,2]
[366139053,1750083050967,-490.0,0.00016602,2]
[366139054,1750083050976,-516.53,0.00016602,2]
[366139055,1750083050986,-490.0,0.00016602,2]
[366139056,1750083050995,-490.0,0.00016602,2]
[366139057,1750083051005,-490.0,0.00016602,2]
[366139058,1750083051015,-480.35991438,0.00016602,2]
[366139059,1750083051024,-770.93,0.00016602,2]
[366139060,1750083051033,-557.7,0.00016602,2]
[366139061,1750083051042,-762.01,0.00016602,2]
[366139062,1750083051053,-490.0,0.00016602,2]
[366139063,1750083051062,-490.0,0.00016602,2]
[366139064,1750083051072,-709.9,0.00016602,2]
[366139065,1750083051082,-490.0,0.00016602,2]
[366139066,1750083051091,-490.0,0.00016602,2]
[366139067,1750083051100,-824.85,0.00016602,2]
[366139068,1750083051110,-490.0,0.00016602,2]
[366139069,1750083051120,-490.0,0.00016602,2]
[366139070,1750083051130,-490.0,0.00016602,2]
[366139071,1750083051140,-1484.69,0.00016602,2]
[366139072,1750083051149,-490.0,0.00016602,2]
[366139073,1750083051159,-490.0,0.00016602,2]
[366139074,1750083051168,-208.53,0.00016602,2]
[366139075,1750083051179,-490.0,0.00016602,2]
[366139076,1750083051188,-490.0,0.00016602,2]
[366139077,1750083051198,-618.88,0.00016602,2]
[366139078,1750083051207,-625.34,0.00016602,2]
[366139079,1750083051217,-856.18,0.00016602,2]
[366139080,1750083051226,-59.01984767,0.00016602,2]
[366139081,1750083051887,-792.96015233,0.00016602,2]
[366139082,1750083051897,-490.0,0.00016602,2]
[366139083,1750083051907,-490.0,0.00016602,2]
[366139084,1750083051917,-490.0,0.00016602,2]
[366139085,1750083051928,-490.0,0.00016602,2]
[366139086,1750083051938,-490.0,0.00016602,2]
[366139087,1750083051947,-490.0,0.00016602,2]
[366139088,1750083051957,-837.08,0.00016602,2]
[366139089,1750083051967,-1502.21,0.00016602,2]
[366139090,1750083051976,-490.0,0.00016602,2]
[366139091,1750083052111,-490.0,0.00016602,2]
[366139092,1750083052127,-490.0,0.00016602,2]
[366139093,1750083052137,-490.0,0.00016602,2]
[366139094,1750083052146,-385.684186,0.00016602,2]
[366139095,1750083052156,-490.0,0.00016602,2]
[366139096,1750083052165,-385.684186,0.00016602,2]
[366139097,1750083052176,-490.0,0.00016602,2]